fUST/lending_fUST_20250121
["ID","MTS","AMOUNT","RATE_DAILY","PERIOD"]
[349804599,1737436261217,-5517.57,0.00022739,3]
[349804600,1737436261227,-500.0,0.00022739,3]
[349804601,1737436261237,-500.0,0.00022739,3]
[349804602,1737436261246,-647.72046612,0.00022739,3]
[349804603,1737436261255,-718.57,0.00022739,3]
[349804604,1737436261265,-1581.02,0.00022739,3]
[349804605,1737436261275,-216.29423144,0.00022739,3]
[349804606,1737436261285,-849.72,0.00022739,3]
[349804607,1737436261295,-500.0,0.00022739,3]
[349804608,1737436261307,-1294.2,0.00022739,3]
[349804609,1737436261316,-567.86,0.00022739,3]
[349804610,1737436261326,-500.0,0.00022739,3]
[349804611,1737436261339,-795.86,0.00022739,3]
[349804612,1737436261351,-500.0,0.00022739,3]
[349804613,1737436261360,-500.0,0.00022739,3]
[349804614,1737436261370,-2490.81,0.00022739,3]
[349804615,1737436261380,-602.21,0.00022739,3]
[349804616,1737436261389,-598.1,0.00022739,3]
[349804617,1737436261399,-906.2,0.00022739,3]
[349804618,1737436261409,-500.0,0.00022739,3]
[349804619,1737436261419,-500.0,0.00022739,3]
[349804620,1737436261429,-500.0,0.00022739,3]
[349804621,1737436261439,-500.0,0.00022739,3]
[349804622,1737436261449,-500.0,0.00022739,3]
[349804623,1737436261459,-500.0,0.00022739,3]
[349804624,1737436261468,-500.0,0.00022739,3]
[349804625,1737436261478,-517.62,0.00022739,3]
[349804626,1737436261488,-500.0,0.00022739,3]
[349804627,1737436261497,-500.0,0.00022739,3]
[349804628,1737436261510,-35047.46,0.00022739,3]
[349804629,1737436261520,-3672.32,0.00022739,3]
[349804630,1737436261530,-369.30558429,0.00022739,3]
[349804631,1737436261540,-8328.07,0.00022739,3]
[349804632,1737436261550,-16648.53,0.00022739,3]
[349804633,1737436261561,-989.27,0.00022739,3]
[349804634,1737436261571,-2149.07,0.00022739,3]
[349804635,1737436261582,-500.0,0.00022739,3]
[349804636,1737436261594,-500.0,0.00022739,3]
[349804637,1737436261605,-502.05473162,0.00022739,3]
[349804638,1737436261615,-1654.0,0.00022739,3]
[349804639,1737436261626,-714.08,0.00022739,3]
[349804640,1737436261636,-809.87,0.00022739,3]
[349804641,1737436261647,-1737.78,0.00022739,3]
[349804642,1737436261657,-520.12,0.00022739,3]
[349804643,1737436261775,-941.94,0.00022739,3]
[349804644,1737436261786,-668.23,0.00022739,3]
[349804645,1737436261797,-500.0,0.00022739,3]
[349804646,1737436261809,-4729.29,0.00022739,3]
[349804647,1737436261819,-760.16,0.00022739,3]
[349804648,1737436261829,-500.0,0.00022739,3]
[349804649,1737436261842,-1266.7,0.00022739,3]
[349804650,1737436261852,-836.8,0.00022739,3]
[349804651,1737436261862,-924.68,0.00022739,3]
[349804652,1737436261872,-2889.09,0.00022739,3]
[349804653,1737436261882,-500.0,0.00022739,3]
[349804654,1737436261891,-966.7,0.00022739,3]
[349804655,1737436261901,-1666.36,0.00022739,3]
[349804656,1737436261912,-725.57,0.00022739,3]
[349804657,1737436261923,-500.0,0.00022739,3]
[349804658,1737436261933,-4625.09,0.00022739,3]
[349804659,1737436261943,-4079.3,0.00022739,3]
[349804660,1737436261952,-522.87,0.00022739,3]
[349804661,1737436261962,-500.0,0.00022739,3]
[349804662,1737436261972,-7980.33,0.00022739,3]
[349804663,1737436261982,-3321.54,0.00022739,3]
[349804664,1737436261991,-2125.78,0.00022739,3]
[349804665,1737436262001,-700.2,0.00022739,3]
[349804666,1737436262011,-500.0,0.00022739,3]
[349804667,1737436262021,-500.0,0.00022739,3]
[349804668,1737436262030,-12319.31,0.00022739,3]
[349804669,1737436262040,-654.58,0.00022739,3]
[349804670,1737436262050,-1504.03,0.00022739,3]
[349804671,1737436262062,-581.59,0.00022739,3]
[349804672,1737436262072,-1705.49,0.00022739,3]
[349804673,1737436262082,-1357.55,0.00022739,3]
[349804674,1737436262091,-500.0,0.00022739,3]
[349804675,1737436262102,-500.0,0.00022739,3]
[349804676,1737436262113,-500.0,0.00022739,3]
[349804677,1737436262123,-500.0,0.00022739,3]
[349804678,1737436262133,-841.13,0.00022739,3]
[349804679,1737436262142,-938.07,0.00022739,3]
[349804680,1737436262152,-688.07,0.00022739,3]
[349804681,1737436262162,-500.0,0.00022739,3]
[349804682,1737436262173,-2173.27,0.00022739,3]
[349804683,1737436262183,-544.6,0.00022739,3]
[349804684,1737436262193,-500.0,0.00022739,3]
[349804685,1737436262203,-47576.26,0.00022739,3]
[349804686,1737436262212,-676.95,0.00022739,3]
[349804687,1737436262222,-500.0,0.00022739,3]
[349804688,1737436262231,-3665.17,0.00022739,3]
[349804689,1737436262240,-500.0,0.00022739,3]
[349804690,1737436262250,-2353.99,0.00022739,3]
[349804691,1737436262262,-707.0,0.0002274,3]
[349804692,1737436262272,-285.04999898,0.0002275,2]
[349804693,1737436262282,-570.28908993,0.00022785,2]
[349804694,1737436262292,-5346.72402757,0.00022804,2]
[349804695,1737436262301,-63889.80996886,0.0002287,2]
[349804696,1737436262313,-500.0,0.00022876,3]
[349804697,1737436262322,-500.0,0.00022876,3]
[349804698,1737436262332,-500.0,0.00022876,3]
[349804699,1737436262341,-1235.39,0.00022876,3]
[349804700,1737436262351,-500.0,0.00022876,3]
[349804701,1737436262361,-500.0,0.00022876,3]
[349804702,1737436262371,-796.12,0.00022876,3]
[349804703,1737436262380,-500.0,0.00022876,3]
[349804704,1737436262390,-500.0,0.00022876,3]
[349804705,1737436262414,-500.0,0.00022876,3]
[349804706,1737436262435,-998.97,0.00022876,3]
[349804707,1737436262456,-604.25,0.00022876,3]
[349804708,1737436262479,-188.0,0.00022876,2]
[349804709,1737436262504,-500.0,0.00022876,3]
[349804710,1737436262523,-500.0,0.00022876,3]
[349804711,1737436262545,-500.0,0.00022876,3]
[349804712,1737436262562,-500.0,0.00022876,3]
[349804713,1737436262579,-500.0,0.00022876,3]
[349804714,1737436262602,-500.0,0.00022876,3]
[349804715,1737436262624,-500.0,0.00022876,3]
[349804716,1737436262640,-500.0,0.00022876,3]
[349804717,1737436262657,-500.0,0.00022876,3]
[349804718,1737436262677,-500.0,0.00022876,3]
[349804719,1737436262696,-500.0,0.00022876,3]
[349804720,1737436262712,-508.45384356,0.00022876,3]
[349804721,1737436262728,-338.10428027,0.00022876,3]
[349804722,1737436262744,-1333.83,0.00022876,3]
[349804723,1737436262765,-500.0,0.00022876,3]
[349804724,1737436262784,-500.0,0.00022876,3]
[349804725,1737436262803,-1527.69,0.00022876,3]
[349804726,1737436262823,-500.0,0.00022876,3]
[349804727,1737436262841,-500.0,0.00022876,3]
[349804728,1737436262860,-500.0,0.00022876,3]
[349804729,1737436262877,-500.0,0.00022876,3]
[349804730,1737436262896,-953.42,0.00022876,3]
[349804731,1737436262914,-500.0,0.00022876,3]
[349804732,1737436262931,-500.0,0.00022876,3]
[349804733,1737436262948,-500.0,0.00022876,3]
[349804734,1737436262966,-1913.55,0.00022876,3]
[349804735,1737436262985,-822.24,0.00022876,3]
[349804736,1737436263002,-500.0,0.00022876,3]
[349804737,1737436263020,-518.49183422,0.00022876,3]
[349804738,1737436263037,-824.53,0.00022876,3]
[349804739,1737436263048,-1171.5,0.00022876,3]
[349804740,1737436263058,-757.81,0.00022876,3]
[349804741,1737436263070,-730.74,0.00022876,3]
[349804742,1737436263080,-601.27134005,0.00022876,3]
[349804743,1737436263091,-717.4,0.00022876,3]
[349804744,1737436263102,-1169.85,0.00022876,3]
[349804745,1737436263113,-1423.53,0.00022876,3]
[349804746,1737436263124,-624.85,0.00022876,3]
[349804747,1737436263134,-500.0,0.00022876,3]
[349804748,1737436263145,-500.0,0.00022876,3]
[349804749,1737436263155,-813.03,0.00022876,3]
[349804750,1737436263166,-500.0,0.00022876,3]
[349804751,1737436263177,-500.0,0.00022876,3]
[349804752,1737436263189,-500.0,0.00022876,3]
[349804753,1737436263200,-814.58,0.00022876,3]
[349804754,1737436263211,-500.0,0.00022876,3]
[349804755,1737436263221,-827.27,0.00022876,3]
[349804756,1737436263231,-747.15,0.00022876,3]
[349804757,1737436263241,-681.43,0.00022876,3]
[349804758,1737436263252,-500.0,0.00022876,3]
[349804759,1737436263263,-500.0,0.00022876,3]
[349804760,1737436263273,-500.0,0.00022876,3]
[349804761,1737436263284,-166.52219508,0.00022876,3]
[349804762,1737436263295,-500.0,0.00022876,3]
[349804763,1737436263307,-998.18,0.00022876,3]
[349804764,1737436263319,-500.81,0.00022876,3]
[349804765,1737436263574,-500.0,0.00022876,3]
[349804766,1737436263732,-1253.69,0.00022876,3]
[349804767,1737436263752,-500.0,0.00022876,3]
[349804768,1737436263772,-500.0,0.00022876,3]
[349804769,1737436263783,-539.27,0.00022876,3]
[349804770,1737436263794,-859.92,0.00022876,3]
[349804771,1737436263804,-500.0,0.00022876,3]
[349804772,1737436263816,-1244.51,0.00022876,3]
[349804773,1737436263826,-500.0,0.00022876,3]
[349804774,1737436263837,-500.0,0.00022876,3]
[349804775,1737436263847,-856.94,0.00022876,3]
[349804776,1737436263857,-500.0,0.00022876,3]
[349804777,1737436263867,-500.0,0.00022876,3]
[349804778,1737436263877,-565.02,0.00022876,3]
[349804779,1737436263889,-850.13,0.00022876,3]
[349804780,1737436263899,-500.0,0.00022876,3]
[349804781,1737436263912,-511.72,0.00022876,3]
[349804782,1737436263923,-603.42712674,0.00022876,3]
[349804783,1737436263933,-846.61,0.00022876,3]
[349804784,1737436263944,-500.0,0.00022876,3]
[349804785,1737436263955,-500.0,0.00022876,3]
[349804786,1737436263965,-510.96,0.00022876,3]
[349804787,1737436263975,-1671.98,0.00022876,2]
[349804788,1737436263986,-500.0,0.00022876,3]
[349804789,1737436263995,-1863.02,0.00022876,3]
[349804790,1737436264006,-7275.37,0.00022876,3]
[349804791,1737436264016,-500.0,0.00022876,3]
[349804792,1737436264026,-5517.57,0.00022876,3]
[349804793,1737436264037,-255.68580086,0.00022876,3]
[349804794,1737436264048,-500.0,0.00022876,3]
[349804795,1737436264060,-718.57,0.00022876,3]
[349804796,1737436264071,-1581.02,0.00022876,3]
[349804797,1737436264082,-849.72,0.00022876,3]
[349804798,1737436264091,-500.0,0.00022876,3]
[349804799,1737436264101,-1294.2,0.00022876,3]
[349804800,1737436264111,-500.0,0.00022876,3]
[349804801,1737436264121,-567.86,0.00022876,3]
[349804802,1737436264131,-795.86,0.00022876,3]
[349804803,1737436264142,-500.0,0.00022876,3]
[349804804,1737436264151,-500.0,0.00022876,3]
[349804805,1737436264161,-2490.81,0.00022876,3]
[349804806,1737436264171,-602.21,0.00022876,3]
[349804807,1737436264181,-598.1,0.00022876,3]
[349804808,1737436264190,-906.2,0.00022876,3]
[349804809,1737436264201,-500.0,0.00022876,3]
[349804810,1737436264211,-500.0,0.00022876,3]
[349804811,1737436264222,-500.0,0.00022876,3]
[349804812,1737436264233,-500.0,0.00022876,3]
[349804813,1737436264243,-518.27513364,0.00022876,3]
[349804814,1737436264253,-500.0,0.00022876,3]
[349804815,1737436264263,-500.0,0.00022876,3]
[349804816,1737436264273,-517.62,0.00022876,3]
[349804817,1737436264282,-500.0,0.00022876,3]
[349804818,1737436264292,-500.0,0.00022876,3]
[349804819,1737436264303,-35047.46,0.00022876,3]
[349804820,1737436264315,-3672.32,0.00022876,3]
[349804821,1737436264325,-8328.07,0.00022876,3]
[349804822,1737436264336,-16648.53,0.00022876,3]
[349804823,1737436264347,-989.27,0.00022876,3]
[349804824,1737436264358,-2149.07,0.00022876,3]
[349804825,1737436264368,-500.0,0.00022876,3]
[349804826,1737436264379,-333.0889762,0.00022876,3]
[349804827,1737436264390,-1654.0,0.00022876,3]
[349804828,1737436264400,-714.08,0.00022876,3]
[349804829,1737436264411,-809.87,0.00022876,3]
[349804830,1737436264422,-1737.78,0.00022876,3]
[349804831,1737436264433,-520.12,0.00022876,3]
[349804832,1737436264443,-941.94,0.00022876,3]
[349804833,1737436264454,-668.23,0.00022876,3]
[349804834,1737436264464,-500.0,0.00022876,3]
[349804835,1737436264475,-4729.29,0.00022876,3]
[349804836,1737436264484,-760.16,0.00022876,3]
[349804837,1737436264494,-500.0,0.00022876,3]
[349804838,1737436264505,-1266.7,0.00022876,3]
[349804839,1737436264515,-836.8,0.00022876,3]
[349804840,1737436264524,-924.68,0.00022876,3]
[349804841,1737436264534,-2889.09,0.00022876,3]
[349804842,1737436264544,-500.0,0.00022876,3]
[349804843,1737436264554,-966.7,0.00022876,3]
[349804844,1737436264566,-1666.36,0.00022876,3]
[349804845,1737436264576,-725.57,0.00022876,3]
[349804846,1737436264587,-500.0,0.00022876,3]
[349804847,1737436264597,-4625.09,0.00022876,3]
[349804848,1737436264607,-4079.3,0.00022876,3]
[349804849,1737436264617,-522.87,0.00022876,3]
[349804850,1737436264627,-500.0,0.00022876,3]
[349804851,1737436264637,-7980.33,0.00022876,3]
[349804852,1737436264647,-3321.54,0.00022876,3]
[349804853,1737436264657,-2125.78,0.00022876,3]
[349804854,1737436264667,-700.2,0.00022876,3]
[349804855,1737436264677,-500.0,0.00022876,3]
[349804856,1737436264687,-500.0,0.00022876,3]
[349804857,1737436264697,-12319.31,0.00022876,3]
[349804858,1737436264706,-654.58,0.00022876,3]
[349804859,1737436264717,-1504.03,0.00022876,3]
[349804860,1737436264727,-581.59,0.00022876,3]
[349804861,1737436264736,-1705.49,0.00022876,3]
[349804862,1737436264747,-1357.55,0.00022876,3]
[349804863,1737436264766,-500.0,0.00022876,3]
[349804864,1737436264779,-500.0,0.00022876,3]
[349804865,1737436264789,-500.0,0.00022876,3]
[349804866,1737436264799,-500.0,0.00022876,3]
[349804867,1737436264810,-841.13,0.00022876,3]
[349804868,1737436264820,-938.07,0.00022876,3]
[349804869,1737436264830,-688.07,0.00022876,3]
[349804870,1737436264839,-500.0,0.00022876,3]
[349804871,1737436264850,-2173.27,0.00022876,3]
[349804872,1737436264859,-544.6,0.00022876,3]
[349804873,1737436264868,-500.0,0.00022876,3]
[349804874,1737436264878,-47576.26,0.00022876,3]
[349804875,1737436264887,-676.95,0.00022876,3]
[349804876,1737436264896,-459.8813506,0.00022876,3]
[349804877,1737436264906,-3665.17,0.00022876,3]
[349804878,1737436264915,-500.0,0.00022876,3]
[349804879,1737436264925,-2353.99,0.00022876,3]
[349804880,1737436264934,-225.6,0.00022886,6]
[349804881,1737436264944,-1000.0,0.00022921,2]
[349804882,1737436264953,-6602.32617853,0.00022982,2]
[349804883,1737436264962,-244.51503723,0.00023,2]
[349804884,1737436264971,-7443.73021992,0.00023,10]
[349804885,1737436264981,-33596.20888918,0.00023,2]
[349804886,1737436264991,-1000.0,0.00023,23]
[349804887,1737436265001,-600.99333976,0.00023,2]
[349804888,1737436265010,-200.0,0.00023,2]
[349804889,1737436265020,-261.78518536,0.00023013,3]
[349804890,1737436265031,-151.25783021,0.00023013,3]
[349804891,1737436265040,-270.51188016,0.00023013,3]
[349804892,1737436265050,-215.62670773,0.00023013,3]
[349804893,1737436265060,-500.0,0.00023013,3]
[349804894,1737436265070,-500.0,0.00023013,3]
[349804895,1737436265079,-500.0,0.00023013,3]
[349804896,1737436265089,-500.0,0.00023013,3]
[349804897,1737436265098,-500.0,0.00023013,3]
[349804898,1737436265108,-1235.39,0.00023013,3]
[349804899,1737436265117,-500.0,0.00023013,3]
[349804900,1737436265126,-500.0,0.00023013,3]
[349804901,1737436265136,-796.12,0.00023013,3]
[349804902,1737436265145,-500.0,0.00023013,3]
[349804903,1737436265154,-500.0,0.00023013,3]
[349804904,1737436265164,-500.0,0.00023013,3]
[349804905,1737436265174,-998.97,0.00023013,3]
[349804906,1737436265183,-604.25,0.00023013,3]
[349804907,1737436265193,-188.0,0.00023013,2]
[349804908,1737436265204,-500.0,0.00023013,3]
[349804909,1737436265214,-500.0,0.00023013,3]
[349804910,1737436265224,-500.0,0.00023013,3]
[349804911,1737436265233,-500.0,0.00023013,3]
[349804912,1737436265242,-500.0,0.00023013,3]
[349804913,1737436265252,-500.0,0.00023013,3]
[349804914,1737436265261,-500.0,0.00023013,3]
[349804915,1737436265270,-500.0,0.00023013,3]
[349804916,1737436265279,-500.0,0.00023013,3]
[349804917,1737436265288,-500.0,0.00023013,3]
[349804918,1737436265298,-500.0,0.00023013,3]
[349804919,1737436265307,-1333.83,0.00023013,3]
[349804920,1737436265316,-500.0,0.00023013,3]
[349804921,1737436265325,-525.87599326,0.00023013,3]
[349804922,1737436265335,-1527.69,0.00023013,3]
[349804923,1737436265344,-500.0,0.00023013,3]
[349804924,1737436265353,-500.0,0.00023013,3]
[349804925,1737436265363,-500.0,0.00023013,3]
[349804926,1737436265372,-500.0,0.00023013,3]
[349804927,1737436265381,-953.42,0.00023013,3]
[349804928,1737436265391,-500.0,0.00023013,3]
[349804929,1737436265401,-500.0,0.00023013,3]
[349804930,1737436265412,-500.0,0.00023013,3]
[349804931,1737436265421,-1913.55,0.00023013,3]
[349804932,1737436265431,-822.24,0.00023013,3]
[349804933,1737436265441,-544.43956736,0.00023013,3]
[349804934,1737436265451,-824.53,0.00023013,3]
[349804935,1737436265460,-1171.5,0.00023013,3]
[349804936,1737436265470,-757.81,0.00023013,3]
[349804937,1737436265480,-730.74,0.00023013,3]
[349804938,1737436265489,-717.4,0.00023013,3]
[349804939,1737436265499,-1169.85,0.00023013,3]
[349804940,1737436265509,-1423.53,0.00023013,3]
[349804941,1737436265519,-624.85,0.00023013,3]
[349804942,1737436265529,-500.0,0.00023013,3]
[349804943,1737436265539,-500.0,0.00023013,3]
[349804944,1737436265548,-813.03,0.00023013,3]
[349804945,1737436265558,-500.0,0.00023013,3]
[349804946,1737436265568,-500.0,0.00023013,3]
[349804947,1737436265577,-500.0,0.00023013,3]
[349804948,1737436265589,-814.58,0.00023013,3]
[349804949,1737436265598,-500.0,0.00023013,3]
[349804950,1737436265608,-827.27,0.00023013,3]
[349804951,1737436265617,-747.15,0.00023013,3]
[349804952,1737436265627,-681.43,0.00023013,3]
[349804953,1737436265637,-500.0,0.00023013,3]
[349804954,1737436265647,-500.0,0.00023013,3]
[349804955,1737436265658,-500.0,0.00023013,3]
[349804956,1737436265668,-500.0,0.00023013,3]
[349804957,1737436265678,-998.18,0.00023013,3]
[349804958,1737436265689,-500.81,0.00023013,3]
[349804959,1737436265699,-500.0,0.00023013,3]
[349804960,1737436265709,-1253.69,0.00023013,3]
[349804961,1737436265719,-500.0,0.00023013,3]
[349804962,1737436265729,-500.0,0.00023013,3]
[349804963,1737436265739,-539.27,0.00023013,3]
[349804964,1737436265749,-859.92,0.00023013,3]
[349804965,1737436265761,-500.0,0.00023013,3]
[349804966,1737436265772,-1244.51,0.00023013,3]
[349804967,1737436265782,-500.0,0.00023013,3]
[349804968,1737436265791,-500.0,0.00023013,3]
[349804969,1737436265803,-856.94,0.00023013,3]
[349804970,1737436265814,-500.0,0.00023013,3]
[349804971,1737436265824,-500.0,0.00023013,3]
[349804972,1737436265834,-565.02,0.00023013,3]
[349804973,1737436265844,-850.13,0.00023013,3]
[349804974,1737436265853,-500.0,0.00023013,3]
[349804975,1737436265864,-511.72,0.00023013,3]
[349804976,1737436265873,-846.61,0.00023013,3]
[349804977,1737436265883,-500.0,0.00023013,3]
[349804978,1737436265892,-500.0,0.00023013,3]
[349804979,1737436265901,-510.96,0.00023013,3]
[349804980,1737436265911,-1671.98,0.00023013,2]
[349804981,1737436265920,-500.0,0.00023013,3]
[349804982,1737436265930,-1863.02,0.00023013,3]
[349804983,1737436265940,-7275.37,0.00023013,3]
[349804984,1737436265950,-500.0,0.00023013,3]
[349804985,1737436265960,-5517.57,0.00023013,3]
[349804986,1737436265969,-500.0,0.00023013,3]
[349804987,1737436265979,-718.57,0.00023013,3]
[349804988,1737436265989,-1581.02,0.00023013,3]
[349804989,1737436265999,-849.72,0.00023013,3]
[349804990,1737436266009,-500.0,0.00023013,3]
[349804991,1737436266018,-1294.2,0.00023013,3]
[349804992,1737436266028,-500.0,0.00023013,3]
[349804993,1737436266038,-567.86,0.00023013,3]
[349804994,1737436266048,-795.86,0.00023013,3]
[349804995,1737436266058,-500.0,0.00023013,3]
[349804996,1737436266068,-500.0,0.00023013,3]
[349804997,1737436266078,-2490.81,0.00023013,3]
[349804998,1737436266088,-602.21,0.00023013,3]
[349804999,1737436266098,-598.1,0.00023013,3]
[349805000,1737436266108,-906.2,0.00023013,3]
[349805001,1737436266118,-500.0,0.00023013,3]
[349805002,1737436266128,-500.0,0.00023013,3]
[349805003,1737436266138,-500.0,0.00023013,3]
[349805004,1737436266148,-500.0,0.00023013,3]
[349805005,1737436266158,-500.0,0.00023013,3]
[349805006,1737436266168,-500.0,0.00023013,3]
[349805007,1737436266177,-517.62,0.00023013,3]
[349805008,1737436266187,-500.0,0.00023013,3]
[349805009,1737436266196,-500.0,0.00023013,3]
[349805010,1737436266206,-35047.46,0.00023013,3]
[349805011,1737436266216,-3672.32,0.00023013,3]
[349805012,1737436266226,-8328.07,0.00023013,3]
[349805013,1737436266236,-16648.53,0.00023013,3]
[349805014,1737436266246,-989.27,0.00023013,3]
[349805015,1737436266256,-2149.07,0.00023013,3]
[349805016,1737436266268,-500.0,0.00023013,3]
[349805017,1737436266278,-1654.0,0.00023013,3]
[349805018,1737436266288,-714.08,0.00023013,3]
[349805019,1737436266298,-809.87,0.00023013,3]
[349805020,1737436266308,-1737.78,0.00023013,3]
[349805021,1737436266318,-520.12,0.00023013,3]
[349805022,1737436266328,-941.94,0.00023013,3]
[349805023,1737436266338,-668.23,0.00023013,3]
[349805024,1737436266347,-500.0,0.00023013,3]
[349805025,1737436266357,-4729.29,0.00023013,3]
[349805026,1737436266367,-760.16,0.00023013,3]
[349805027,1737436266377,-500.0,0.00023013,3]
[349805028,1737436266386,-1266.7,0.00023013,3]
[349805029,1737436266396,-836.8,0.00023013,3]
[349805030,1737436266406,-924.68,0.00023013,3]
[349805031,1737436266416,-2889.09,0.00023013,3]
[349805032,1737436266426,-500.0,0.00023013,3]
[349805033,1737436266436,-966.7,0.00023013,3]
[349805034,1737436266445,-1666.36,0.00023013,3]
[349805035,1737436266454,-725.57,0.00023013,3]
[349805036,1737436266464,-500.0,0.00023013,3]
[349805037,1737436266474,-4625.09,0.00023013,3]
[349805038,1737436266483,-4079.3,0.00023013,3]
[349805039,1737436266493,-522.87,0.00023013,3]
[349805040,1737436266503,-500.0,0.00023013,3]
[349805041,1737436266514,-7980.33,0.00023013,3]
[349805042,1737436266523,-3321.54,0.00023013,3]
[349805043,1737436266533,-2125.78,0.00023013,3]
[349805044,1737436266543,-700.2,0.00023013,3]
[349805045,1737436266553,-500.0,0.00023013,3]
[349805046,1737436266563,-500.0,0.00023013,3]
[349805047,1737436266573,-12319.31,0.00023013,3]
[349805048,1737436266584,-654.58,0.00023013,3]
[349805049,1737436266595,-1504.03,0.00023013,3]
[349805050,1737436266605,-581.59,0.00023013,3]
[349805051,1737436266615,-1705.49,0.00023013,3]
[349805052,1737436266626,-1357.55,0.00023013,3]
[349805053,1737436266636,-500.0,0.00023013,3]
[349805054,1737436266647,-500.0,0.00023013,3]
[349805055,1737436266657,-500.0,0.00023013,3]
[349805056,1737436266667,-500.0,0.00023013,3]
[349805057,1737436266677,-841.13,0.00023013,3]
[349805058,1737436266687,-938.07,0.00023013,3]
[349805059,1737436266696,-688.07,0.00023013,3]
[349805060,1737436266706,-500.0,0.00023013,3]
[349805061,1737436266716,-2173.27,0.00023013,3]
[349805062,1737436266726,-544.6,0.00023013,3]
[349805063,1737436266735,-500.0,0.00023013,3]
[349805064,1737436266745,-47576.26,0.00023013,3]
[349805065,1737436266758,-676.95,0.00023013,3]
[349805066,1737436266768,-3665.17,0.00023013,3]
[349805067,1737436266778,-500.0,0.00023013,3]
[349805068,1737436266788,-2353.99,0.00023013,3]
[349805069,1737436266799,-707.0,0.00023014,3]
[349805070,1737436266808,-5346.72402757,0.00023042,2]
[349805071,1737436266820,-151.55710722,0.00023116,2]
[349805072,1737436266831,-500.0,0.00023116,2]
[349805073,1737436266842,-500.0,0.00023116,2]
[349805074,1737436266851,-500.0,0.00023116,2]
[349805075,1737436266862,-225.6,0.00023116,6]
[349805076,1737436266871,-500.0,0.0002315,3]
[349805077,1737436266881,-500.0,0.0002315,3]
[349805078,1737436266891,-500.0,0.0002315,3]
[349805079,1737436266901,-1235.39,0.0002315,3]
[349805080,1737436266911,-500.0,0.0002315,3]
[349805081,1737436266921,-500.0,0.0002315,3]
[349805082,1737436266931,-796.12,0.0002315,3]
[349805083,1737436266941,-500.0,0.0002315,3]
[349805084,1737436266950,-500.0,0.0002315,3]
[349805085,1737436266960,-500.0,0.0002315,3]
[349805086,1737436266969,-998.97,0.0002315,3]
[349805087,1737436266979,-604.25,0.0002315,3]
[349805088,1737436267146,-188.0,0.0002315,2]
[349805089,1737436267157,-500.0,0.0002315,3]
[349805090,1737436267167,-500.0,0.0002315,3]
[349805091,1737436267177,-500.0,0.0002315,3]
[349805092,1737436267187,-500.0,0.0002315,3]
[349805093,1737436267196,-500.0,0.0002315,3]
[349805094,1737436267207,-500.0,0.0002315,3]
[349805095,1737436267216,-500.0,0.0002315,3]
[349805096,1737436267226,-500.0,0.0002315,3]
[349805097,1737436267236,-500.0,0.0002315,3]
[349805098,1737436267246,-400.11998148,0.0002315,3]